fUSD/lending_fUSD_20241223
["ID","MTS","AMOUNT","RATE_DAILY","PERIOD"]
[346364953,1734913835122,-500.0,0.00019178,2]
[346364955,1734913835131,-500.0,0.00019178,2]
[346364957,1734913835140,-1388.64,0.00019178,2]
[346364959,1734913835149,-635.44,0.00019178,2]
[346364961,1734913835158,-1169.24,0.00019178,2]
[346364963,1734913835168,-5529.73,0.00019178,2]
[346364965,1734913835177,-772.93,0.00019178,2]
[346364967,1734913835186,-500.0,0.00019178,2]
[346364969,1734913835195,-500.0,0.00019178,2]
[346364971,1734913835204,-2076.0,0.00019178,2]
[346364973,1734913835213,-829.19,0.00019178,2]
[346364975,1734913835222,-500.0,0.00019178,2]
[346364977,1734913835231,-738.62,0.00019178,2]
[346364979,1734913835240,-1302.93,0.00019178,2]
[346364981,1734913835249,-500.0,0.00019178,2]
[346364982,1734913835258,-962.93,0.00019178,2]
[346364983,1734913835269,-924.7,0.00019178,2]
[346364984,1734913835278,-866.65,0.00019178,2]
[346364985,1734913835288,-1732.2,0.00019178,2]
[346364986,1734913835297,-500.0,0.00019178,2]
[346364987,1734913835306,-500.0,0.00019178,2]
[346364988,1734913835315,-619.43,0.00019178,2]
[346364989,1734913835326,-500.0,0.00019178,2]
[346364990,1734913835340,-521.52,0.00019178,2]
[346364991,1734913835349,-500.0,0.00019178,2]
[346364992,1734913835358,-500.0,0.00019178,2]
[346364993,1734913835369,-3281.36,0.00019178,2]
[346364994,1734913835380,-1403.23,0.00019178,2]
[346364995,1734913835389,-1174.18,0.00019178,2]
[346364996,1734913835398,-3797.64,0.00019178,2]
[346364997,1734913835408,-500.0,0.00019178,2]
[346364998,1734913835417,-1522.56,0.00019178,2]
[346364999,1734913835426,-500.0,0.00019178,2]
[346365000,1734913835438,-516.99,0.00019178,2]
[346365001,1734913835449,-898.87,0.00019178,2]
[346365002,1734913835459,-1382.23,0.00019178,2]
[346365003,1734913835468,-1122.41,0.00019178,2]
[346365004,1734913835477,-500.0,0.00019178,2]
[346365005,1734913835486,-2882.36,0.00019178,2]
[346365006,1734913835495,-2101.65,0.00019178,2]
[346365007,1734913835504,-1519.51,0.00019178,2]
[346365008,1734913835514,-3309.84,0.00019178,2]
[346365009,1734913835523,-500.0,0.00019178,2]
[346365010,1734913835532,-500.0,0.00019178,2]
[346365011,1734913835541,-500.0,0.00019178,2]
[346365012,1734913835551,-1540.82,0.00019178,2]
[346365013,1734913835560,-5587.47,0.00019178,2]
[346365014,1734913835569,-668.33,0.00019178,2]
[346365015,1734913835578,-500.0,0.00019178,2]
[346365016,1734913835588,-500.0,0.00019178,2]
[346365017,1734913835597,-500.0,0.00019178,2]
[346365018,1734913835606,-500.0,0.00019178,2]
[346365019,1734913835616,-2666.28,0.00019178,2]
[346365020,1734913835626,-1262.99,0.00019178,2]
[346365021,1734913835635,-2044.61,0.00019178,2]
[346365022,1734913835645,-3394.23,0.00019178,2]
[346365023,1734913835654,-500.0,0.00019178,2]
[346365024,1734913835663,-500.0,0.00019178,2]
[346365025,1734913835674,-1051.95,0.00019178,2]
[346365026,1734913835683,-857.5,0.00019178,2]
[346365027,1734913835692,-500.0,0.00019178,2]
[346365028,1734913835701,-2361.88,0.00019178,2]
[346365029,1734913835710,-1038.43,0.00019178,2]
[346365030,1734913835719,-521.58,0.00019178,2]
[346365031,1734913835728,-1248.82,0.00019178,2]
[346365032,1734913835738,-500.0,0.00019178,2]
[346365033,1734913835747,-500.0,0.00019178,2]
[346365034,1734913835756,-561.39,0.00019178,2]
[346365035,1734913835765,-939.28,0.00019178,2]
[346365036,1734913835777,-7425.45,0.00019178,2]
[346365037,1734913835786,-641.2,0.00019178,2]
[346365038,1734913835795,-950.64,0.00019178,2]
[346365039,1734913835805,-1002.24,0.00019178,2]
[346365040,1734913835814,-832.22,0.00019178,2]
[346365041,1734913835824,-3408.94,0.00019178,2]
[346365042,1734913835833,-574.01,0.00019178,2]
[346365043,1734913835843,-3419.66,0.00019178,2]
[346365044,1734913835853,-3226.43,0.00019178,2]
[346365045,1734913835862,-5581.95,0.00019178,2]
[346365046,1734913835874,-904.7,0.00019178,2]
[346365047,1734913835883,-500.0,0.00019178,2]
[346365048,1734913835892,-500.0,0.00019178,2]
[346365049,1734913835901,-500.0,0.00019178,2]
[346365050,1734913835910,-754.64,0.00019178,2]
[346365051,1734913835919,-500.0,0.00019178,2]
[346365052,1734913835928,-500.0,0.00019178,2]
[346365053,1734913835937,-500.0,0.00019178,2]
[346365054,1734913835946,-1162.15,0.00019178,2]
[346365055,1734913835955,-500.0,0.00019178,2]
[346365056,1734913835964,-500.0,0.00019178,2]
[346365057,1734913835973,-500.0,0.00019178,2]
[346365058,1734913835983,-763.46,0.00019178,2]
[346365059,1734913835992,-500.0,0.00019178,2]
[346365060,1734913836001,-500.0,0.00019178,2]
[346365061,1734913836011,-500.0,0.00019178,2]
[346365062,1734913836020,-787.41,0.00019178,2]
[346365063,1734913836029,-500.0,0.00019178,2]
[346365064,1734913836038,-500.0,0.00019178,2]
[346365065,1734913836047,-500.0,0.00019178,2]
[346365066,1734913836056,-500.0,0.00019178,2]
[346365067,1734913836065,-859.49,0.00019178,2]
[346365068,1734913836075,-500.0,0.00019178,2]
[346365069,1734913836084,-522.93,0.00019178,2]
[346365070,1734913836093,-604.51,0.00019178,2]
[346365071,1734913836102,-500.0,0.00019178,2]
[346365072,1734913836111,-500.0,0.00019178,2]
[346365073,1734913836120,-584.66,0.00019178,2]
[346365074,1734913836130,-500.0,0.00019178,2]
[346365075,1734913836139,-500.0,0.00019178,2]
[346365076,1734913836148,-500.0,0.00019178,2]
[346365077,1734913836157,-500.0,0.00019178,2]
[346365078,1734913836167,-504.94,0.00019178,2]
[346365079,1734913836176,-494.56,0.00019178,2]
[346365080,1734913836186,-500.65,0.00019178,2]
[346365081,1734913836196,-199.77538201,0.00019288,2]
[346365082,1734913836205,-5000.0,0.00019351,2]
[346365083,1734913836215,-32595.0088,0.00019351,2]
[346365084,1734913836225,-520.00936768,0.00019351,2]
[346365085,1734913836234,-45100.98656245,0.000194,2]
[346365086,1734913836244,-520.0093676,0.00019412,2]
[346365087,1734913836253,-500.0,0.00019451,2]
[346365088,1734913836263,-500.0,0.00019451,2]
[346365089,1734913836274,-500.0,0.00019451,2]
[346365090,1734913836284,-500.0,0.00019451,2]
[346365091,1734913836294,-500.0,0.00019451,2]
[346365092,1734913836304,-500.0,0.00019451,2]
[346365093,1734913836314,-500.0,0.00019451,2]
[346365094,1734913836323,-412.71371427,0.00019451,2]
[346365095,1734913836333,-500.0,0.00019451,2]
[346365096,1734913836342,-500.0,0.00019451,2]
[346365097,1734913836351,-500.0,0.00019451,2]
[346365098,1734913836361,-346.79,0.00019451,2]
[346365099,1734913836373,-150.06,0.00019451,2]
[346365100,1734913836382,-500.0,0.00019451,2]
[346365101,1734913836391,-507.11,0.00019451,2]
[346365102,1734913836400,-500.0,0.00019451,2]
[346365103,1734913836410,-500.0,0.00019451,2]
[346365104,1734913836420,-500.0,0.00019451,2]
[346365105,1734913836429,-500.0,0.00019451,2]
[346365106,1734913836438,-500.0,0.00019451,2]
[346365107,1734913836447,-500.0,0.00019451,2]
[346365108,1734913836458,-500.0,0.00019451,2]
[346365109,1734913836468,-500.0,0.00019451,2]
[346365110,1734913836477,-500.0,0.00019451,2]
[346365111,1734913836487,-500.0,0.00019451,2]
[346365112,1734913836496,-500.0,0.00019451,2]
[346365113,1734913836505,-500.0,0.00019451,2]
[346365114,1734913836514,-500.0,0.00019451,2]
[346365115,1734913836528,-500.0,0.00019451,2]
[346365116,1734913836537,-500.0,0.00019451,2]
[346365117,1734913836546,-500.0,0.00019451,2]
[346365118,1734913836555,-500.0,0.00019451,2]
[346365119,1734913836565,-500.0,0.00019451,2]
[346365120,1734913836574,-500.0,0.00019451,2]
[346365121,1734913836583,-500.0,0.00019451,2]
[346365122,1734913836593,-500.0,0.00019451,2]
[346365123,1734913836602,-500.0,0.00019451,2]
[346365124,1734913836611,-500.0,0.00019451,2]
[346365125,1734913836621,-503.40203945,0.00019451,2]
[346365126,1734913836630,-500.0,0.00019451,2]
[346365127,1734913836639,-500.0,0.00019451,2]
[346365128,1734913836649,-500.0,0.00019451,2]
[346365129,1734913836658,-500.0,0.00019451,2]
[346365130,1734913836668,-500.0,0.00019451,2]
[346365131,1734913836677,-500.0,0.00019451,2]
[346365132,1734913836686,-500.0,0.00019451,2]
[346365133,1734913836695,-500.0,0.00019451,2]
[346365134,1734913836704,-500.0,0.00019451,2]
[346365135,1734913836714,-500.0,0.00019451,2]
[346365136,1734913836723,-511.25533836,0.00019451,2]
[346365137,1734913836732,-500.0,0.00019451,2]
[346365138,1734913836741,-500.0,0.00019451,2]
[346365139,1734913836750,-500.0,0.00019451,2]
[346365140,1734913836759,-500.0,0.00019451,2]
[346365141,1734913836768,-500.0,0.00019451,2]
[346365142,1734913836781,-500.0,0.00019451,2]
[346365143,1734913836790,-500.0,0.00019451,2]
[346365144,1734913836799,-500.0,0.00019451,2]
[346365145,1734913836808,-534.66485242,0.00019451,2]
[346365146,1734913836817,-500.0,0.00019451,2]
[346365147,1734913836826,-500.0,0.00019451,2]
[346365148,1734913836836,-404.95477422,0.00019451,2]
[346365149,1734913836845,-500.0,0.00019451,2]
[346365150,1734913836854,-500.0,0.00019451,2]
[346365151,1734913836863,-500.0,0.00019451,2]
[346365152,1734913836873,-500.0,0.00019451,2]
[346365153,1734913836883,-502.02348373,0.00019451,2]
[346365154,1734913836892,-500.0,0.00019451,2]
[346365155,1734913836902,-500.0,0.00019451,2]
[346365156,1734913836911,-500.0,0.00019451,2]
[346365157,1734913836921,-500.0,0.00019451,2]
[346365158,1734913836930,-500.0,0.00019451,2]
[346365159,1734913836939,-503.36007913,0.00019451,2]
[346365160,1734913836948,-500.0,0.00019451,2]
[346365161,1734913836958,-500.0,0.00019451,2]
[346365162,1734913836967,-500.0,0.00019451,2]
[346365163,1734913836976,-500.0,0.00019451,2]
[346365164,1734913836986,-500.0,0.00019451,2]
[346365165,1734913836995,-500.0,0.00019451,2]
[346365166,1734913837004,-500.0,0.00019451,2]
[346365167,1734913837014,-500.0,0.00019451,2]
[346365168,1734913837027,-500.0,0.00019451,2]
[346365169,1734913837037,-500.0,0.00019451,2]
[346365170,1734913837046,-500.0,0.00019451,2]
[346365171,1734913837055,-500.0,0.00019451,2]
[346365172,1734913837065,-500.0,0.00019451,2]
[346365173,1734913837074,-1332.6,0.00019451,2]
[346365174,1734913837084,-500.0,0.00019451,2]
[346365175,1734913837094,-500.0,0.00019451,2]
[346365176,1734913837103,-500.0,0.00019451,2]
[346365177,1734913837112,-500.0,0.00019451,2]
[346365178,1734913837121,-500.0,0.00019451,2]
[346365179,1734913837131,-545.62,0.00019451,2]
[346365180,1734913837140,-156.51818581,0.00019451,2]
[346365181,1734913837149,-500.0,0.00019451,2]
[346365182,1734913837158,-500.0,0.00019451,2]
[346365183,1734913837167,-500.0,0.00019451,2]
[346365184,1734913837176,-500.0,0.00019451,2]
[346365185,1734913837185,-500.0,0.00019451,2]
[346365186,1734913837194,-500.0,0.00019451,2]
[346365187,1734913837203,-500.0,0.00019451,2]
[346365188,1734913837212,-500.0,0.00019451,2]
[346365189,1734913837222,-500.0,0.00019451,2]
[346365190,1734913837231,-622.18629441,0.00019451,2]
[346365191,1734913837241,-500.0,0.00019451,2]
[346365192,1734913837250,-500.0,0.00019451,2]
[346365193,1734913837260,-500.0,0.00019451,2]
[346365194,1734913837270,-503.40350647,0.00019451,2]
[346365195,1734913837279,-500.0,0.00019451,2]
[346365196,1734913837288,-500.0,0.00019451,2]
[346365197,1734913837297,-507.5760765,0.00019451,2]
[346365198,1734913837306,-363.36912164,0.00019451,2]
[346365199,1734913837316,-500.0,0.00019451,2]
[346365200,1734913837324,-500.0,0.00019451,2]
[346365201,1734913837333,-500.0,0.00019451,2]
[346365202,1734913837343,-500.0,0.00019451,2]
[346365203,1734913837351,-593.12,0.00019451,2]
[346365204,1734913837360,-500.0,0.00019451,2]
[346365205,1734913837371,-500.0,0.00019451,2]
[346365206,1734913837382,-500.0,0.00019451,2]
[346365207,1734913837391,-500.0,0.00019451,2]
[346365208,1734913837400,-500.0,0.00019451,2]
[346365209,1734913837410,-500.0,0.00019451,2]
[346365210,1734913837419,-513.52597378,0.00019451,2]
[346365211,1734913837429,-1202.76,0.00019451,2]
[346365212,1734913837438,-500.0,0.00019451,2]
[346365213,1734913837448,-500.0,0.00019451,2]
[346365214,1734913837457,-2140.96,0.00019451,2]
[346365215,1734913837466,-500.0,0.00019451,2]
[346365216,1734913837475,-1454.03,0.00019451,2]
[346365217,1734913837484,-500.0,0.00019451,2]
[346365218,1734913837493,-1220.94,0.00019451,2]
[346365219,1734913837502,-576.54745381,0.00019451,2]
[346365220,1734913837511,-500.0,0.00019451,2]
[346365221,1734913837523,-1491.66,0.00019451,2]
[346365222,1734913837532,-500.0,0.00019451,2]
[346365223,1734913837541,-158.53,0.00019451,2]
[346365224,1734913837551,-1311.4,0.00019451,2]
[346365225,1734913837565,-500.0,0.00019451,2]
[346365226,1734913837574,-500.0,0.00019451,2]
[346365227,1734913837583,-2435.67,0.00019451,2]
[346365228,1734913837593,-500.0,0.00019451,2]
[346365229,1734913837602,-2948.02,0.00019451,2]
[346365230,1734913837611,-500.0,0.00019451,2]
[346365231,1734913837620,-15346.59,0.00019451,2]
[346365232,1734913837629,-500.0,0.00019451,2]
[346365233,1734913837638,-541.69,0.00019451,2]
[346365234,1734913837647,-361.50223111,0.00019451,2]
[346365235,1734913837656,-1863.49,0.00019451,2]
[346365236,1734913837665,-500.0,0.00019451,2]
[346365237,1734913837674,-1135.25,0.00019451,2]
[346365238,1734913837683,-500.0,0.00019451,2]
[346365239,1734913837692,-500.0,0.00019451,2]
[346365240,1734913837701,-500.0,0.00019451,2]
[346365241,1734913837710,-500.0,0.00019451,2]
[346365242,1734913837719,-2266.71,0.00019451,2]
[346365243,1734913837728,-12478.96,0.00019451,2]
[346365244,1734913837737,-514.92,0.00019451,2]
[346365245,1734913837747,-1313.3,0.00019451,2]
[346365246,1734913837759,-500.0,0.00019451,2]
[346365247,1734913837769,-588.5,0.00019451,2]
[346365248,1734913837780,-1643.1,0.00019451,2]
[346365249,1734913837789,-1041.53,0.00019451,2]
[346365250,1734913837798,-500.0,0.00019451,2]
[346365251,1734913837808,-2218.49,0.00019451,2]
[346365252,1734913837817,-500.0,0.00019451,2]
[346365253,1734913837826,-500.0,0.00019451,2]
[346365254,1734913837835,-500.0,0.00019451,2]
[346365255,1734913837846,-500.0,0.00019451,2]
[346365256,1734913837855,-500.0,0.00019451,2]
[346365257,1734913837866,-500.0,0.00019451,2]
[346365258,1734913837876,-500.0,0.00019451,2]
[346365259,1734913837885,-1000.0,0.00019451,2]
[346365260,1734913837894,-500.0,0.00019451,2]
[346365261,1734913837903,-995.7,0.00019451,2]
[346365262,1734913837912,-500.0,0.00019451,2]
[346365263,1734913837921,-1125.74,0.00019451,2]
[346365264,1734913837929,-500.0,0.00019451,2]
[346365265,1734913837938,-500.0,0.00019451,2]
[346365266,1734913837947,-500.0,0.00019451,2]
[346365267,1734913837956,-500.0,0.00019451,2]
[346365268,1734913837966,-3024.77,0.00019451,2]
[346365269,1734913837975,-500.0,0.00019452,2]
[346365271,1734913837984,-513.8058687,0.00019452,2]
[346365273,1734913837993,-500.0,0.00019452,2]
[346365274,1734913838003,-500.0,0.00019452,2]
[346365276,1734913838012,-500.0,0.00019452,2]
[346365277,1734913838023,-500.0,0.00019452,2]
[346365278,1734913838033,-500.0,0.00019452,2]
[346365279,1734913838042,-500.0,0.00019452,2]
[346365280,1734913838051,-500.0,0.00019452,2]
[346365281,1734913838062,-506.33609164,0.00019452,2]
[346365282,1734913838071,-303.35,0.00019452,2]
[346365283,1734913838081,-500.0,0.00019452,2]
[346365284,1734913838091,-500.0,0.00019452,2]
[346365285,1734913838100,-500.0,0.00019452,2]
[346365286,1734913838110,-500.0,0.00019452,2]
[346365287,1734913838120,-500.0,0.00019452,2]
[346365288,1734913838365,-500.0,0.00019452,2]
[346365289,1734913838379,-500.0,0.00019452,2]
[346365290,1734913838389,-500.0,0.00019452,2]
[346365291,1734913838398,-500.0,0.00019452,2]
[346365292,1734913838408,-500.0,0.00019452,2]
[346365293,1734913838418,-560.57,0.00019452,2]
[346365294,1734913838427,-500.0,0.00019452,2]
[346365295,1734913838436,-500.0,0.00019452,2]
[346365296,1734913838446,-606.95,0.00019452,2]
[346365297,1734913838456,-500.0,0.00019452,2]
[346365298,1734913838466,-500.0,0.00019452,2]
[346365299,1734913838476,-500.0,0.00019452,2]
[346365300,1734913838485,-500.0,0.00019452,2]
[346365301,1734913838495,-500.0,0.00019452,2]
[346365302,1734913838504,-500.0,0.00019452,2]
[346365303,1734913838514,-500.0,0.00019452,2]
[346365304,1734913838526,-500.0,0.00019452,2]
[346365305,1734913838536,-500.0,0.00019452,2]
[346365306,1734913838546,-500.0,0.00019452,2]
[346365307,1734913838555,-978.11,0.00019452,2]
[346365308,1734913838564,-500.0,0.00019452,2]
[346365309,1734913838574,-500.0,0.00019452,2]
[346365310,1734913838583,-500.0,0.00019452,2]
[346365311,1734913838593,-500.0,0.00019452,2]
[346365312,1734913838603,-500.0,0.00019452,2]
[346365313,1734913838614,-500.0,0.00019452,2]
[346365314,1734913838623,-500.0,0.00019452,2]
[346365315,1734913838633,-500.0,0.00019452,2]
[346365316,1734913838642,-500.0,0.00019452,2]
[346365317,1734913838651,-500.0,0.00019452,2]
[346365318,1734913838660,-679.41,0.00019452,2]
[346365319,1734913838669,-500.0,0.00019452,2]
[346365320,1734913838679,-500.0,0.00019452,2]
[346365321,1734913838688,-500.0,0.00019452,2]
[346365322,1734913838697,-500.0,0.00019452,2]
[346365323,1734913838707,-500.0,0.00019452,2]
[346365324,1734913838716,-500.0,0.00019452,2]
[346365325,1734913838725,-500.0,0.00019452,2]
[346365326,1734913838735,-500.0,0.00019452,2]
[346365327,1734913838745,-500.0,0.00019452,2]
[346365328,1734913838754,-500.0,0.00019452,2]
[346365329,1734913838763,-500.0,0.00019452,2]
[346365330,1734913838777,-500.0,0.00019452,2]
[346365331,1734913838786,-500.0,0.00019452,2]
[346365332,1734913838795,-500.0,0.00019452,2]
[346365333,1734913838804,-500.0,0.00019452,2]
[346365334,1734913838814,-500.0,0.00019452,2]
[346365335,1734913838827,-500.0,0.00019452,2]
[346365337,1734913838837,-500.0,0.00019452,2]
[346365339,1734913838846,-500.0,0.00019452,2]
[346365340,1734913838855,-500.0,0.00019452,2]
[346365342,1734913838865,-500.0,0.00019452,2]
[346365344,1734913838875,-500.0,0.00019452,2]
[346365346,1734913838884,-500.0,0.00019452,2]
[346365349,1734913838894,-691.46,0.00019452,2]
[346365351,1734913838904,-758.01,0.00019452,2]
[346365353,1734913838913,-565.36,0.00019452,2]
[346365355,1734913838922,-561.63749088,0.00019452,2]
[346365357,1734913838931,-500.0,0.00019452,2]
[346365359,1734913838940,-500.0,0.00019452,2]
[346365361,1734913838949,-500.0,0.00019452,2]
[346365363,1734913838958,-500.0,0.00019452,2]
[346365365,1734913838967,-271.92807289,0.00019452,2]
[346365367,1734913838976,-500.0,0.00019452,2]
[346365369,1734913838987,-500.0,0.00019452,2]
[346365371,1734913839000,-500.0,0.00019452,2]
[346365373,1734913839010,-640.4,0.00019452,2]
[346365375,1734913839019,-500.0,0.00019452,2]
[346365377,1734913839031,-500.0,0.00019452,2]
[346365379,1734913839041,-900.45,0.00019452,2]
[346365381,1734913839050,-500.0,0.00019452,2]
[346365383,1734913839059,-500.0,0.00019452,2]
[346365385,1734913839069,-1846.36098,0.00019452,2]
[346365387,1734913839079,-500.0,0.00019452,2]
[346365389,1734913839088,-500.0,0.00019452,2]
[346365391,1734913839097,-595.71,0.00019452,2]
[346365394,1734913839108,-1478.832163,0.00019452,2]
[346365396,1734913839117,-500.0,0.00019452,2]
[346365398,1734913839126,-500.0,0.00019452,2]
[346365400,1734913839135,-500.0,0.00019452,2]
[346365402,1734913839144,-500.0,0.00019452,2]
[346365404,1734913839153,-500.0,0.00019452,2]
[346365405,1734913839162,-500.0,0.00019452,2]
[346365407,1734913839171,-500.0,0.00019452,2]
[346365409,1734913839181,-1019.42,0.00019452,2]
[346365411,1734913839190,-500.0,0.00019452,2]
[346365413,1734913839199,-500.0,0.00019452,2]
[346365416,1734913839209,-500.0,0.00019452,2]
[346365417,1734913839218,-500.0,0.00019452,2]
[346365419,1734913839227,-500.0,0.00019452,2]
[346365421,1734913839237,-843.6,0.00019452,2]
[346365424,1734913839246,-500.0,0.00019452,2]
[346365425,1734913839255,-500.0,0.00019452,2]
[346365428,1734913839264,-500.0,0.00019452,2]
[346365430,1734913839276,-500.0,0.00019452,2]
[346365432,1734913839285,-903.49,0.00019452,2]
[346365433,1734913839295,-500.0,0.00019452,2]
[346365436,1734913839304,-546.65,0.00019452,2]
[346365438,1734913839313,-500.0,0.00019452,2]
[346365440,1734913839322,-500.0,0.00019452,2]
[346365442,1734913839331,-500.0,0.00019452,2]
[346365444,1734913839341,-177.13,0.00019452,2]
[346365446,1734913839350,-787.97,0.00019452,2]
[346365448,1734913839359,-900.13,0.00019452,2]
[346365449,1734913839369,-627.34,0.00019452,2]
[346365452,1734913839381,-969.13,0.00019452,2]
[346365454,1734913839391,-500.0,0.00019452,2]
[346365456,1734913839400,-500.0,0.00019452,2]
[346365458,1734913839411,-500.0,0.00019452,2]
[346365459,1734913839421,-500.0,0.00019452,2]
[346365461,1734913839430,-500.0,0.00019452,2]
[346365464,1734913839440,-584.96,0.00019452,2]
[346365466,1734913839450,-500.0,0.00019452,2]
[346365467,1734913839460,-500.0,0.00019452,2]
[346365469,1734913839469,-500.0,0.00019452,2]
[346365471,1734913839478,-910.43,0.00019452,2]
[346365474,1734913839488,-500.0,0.00019452,2]
[346365475,1734913839498,-531.04,0.00019452,2]
[346365477,1734913839507,-789.18,0.00019452,2]
[346365479,1734913839517,-500.0,0.00019452,2]
[346365481,1734913839528,-500.0,0.00019452,2]
[346365484,1734913839538,-500.0,0.00019452,2]
[346365486,1734913839548,-500.0,0.00019452,2]
[346365488,1734913839558,-573.76,0.00019452,2]
[346365490,1734913839567,-500.0,0.00019452,2]
[346365491,1734913839576,-500.0,0.00019452,2]
[346365494,1734913839585,-500.0,0.00019452,2]
[346365496,1734913839595,-500.0,0.00019452,2]
[346365498,1734913839604,-500.0,0.00019452,2]
[346365500,1734913839613,-714.63,0.00019452,2]
[346365502,1734913839623,-648.17,0.00019452,2]
[346365504,1734913839633,-745.78,0.00019452,2]
[346365506,1734913839642,-807.96,0.00019452,2]
[346365508,1734913839652,-500.0,0.00019452,2]
[346365510,1734913839661,-500.0,0.00019452,2]
[346365512,1734913839671,-1008.54,0.00019452,2]
[346365514,1734913839680,-678.64,0.00019452,2]
[346365516,1734913839690,-500.0,0.00019452,2]
[346365518,1734913839699,-500.0,0.00019452,2]
[346365520,1734913839708,-500.0,0.00019452,2]
[346365522,1734913839717,-4002.38,0.00019452,2]
[346365524,1734913839727,-642.37,0.00019452,2]
[346365526,1734913839736,-701.69,0.00019452,2]
[346365528,1734913839746,-669.99,0.00019452,2]
[346365530,1734913839756,-500.0,0.00019452,2]
[346365532,1734913839765,-500.0,0.00019452,2]
[346365534,1734913839777,-679.03,0.00019452,2]
[346365536,1734913839787,-500.0,0.00019452,2]
[346365538,1734913839797,-500.0,0.00019452,2]
[346365540,1734913839808,-1192.35,0.00019452,2]
[346365542,1734913839817,-812.34,0.00019452,2]
[346365544,1734913839827,-749.64,0.00019452,2]
[346365546,1734913839837,-500.0,0.00019452,2]
[346365548,1734913839846,-500.0,0.00019452,2]
[346365550,1734913839855,-500.0,0.00019452,2]
[346365552,1734913839865,-792.45,0.00019452,2]
[346365554,1734913839875,-979.88,0.00019452,2]
[346365556,1734913839884,-500.0,0.00019452,2]
[346365558,1734913839894,-500.0,0.00019452,2]
[346365560,1734913839903,-970.35,0.00019452,2]
[346365562,1734913839912,-500.0,0.00019452,2]
[346365564,1734913839922,-500.0,0.00019452,2]
[346365566,1734913839931,-1393.94,0.00019452,2]
[346365568,1734913839940,-500.0,0.00019452,2]
[346365571,1734913839949,-973.13,0.00019452,2]
[346365573,1734913839959,-500.0,0.00019452,2]
[346365575,1734913839968,-1318.91,0.00019452,2]
[346365577,1734913839977,-750.08,0.00019452,2]
[346365580,1734913839987,-1363.63,0.00019452,2]
[346365583,1734913839997,-2397.66,0.00019452,2]
[346365586,1734913840006,-500.0,0.00019452,2]
[346365588,1734913840015,-877.29,0.00019452,2]
[346365590,1734913840027,-4512.06,0.00019452,2]
[346365592,1734913840036,-500.0,0.00019452,2]
[346365594,1734913840046,-1388.64,0.00019452,2]
[346365596,1734913840055,-500.0,0.00019452,2]
[346365598,1734913840064,-635.44,0.00019452,2]
[346365600,1734913840074,-1169.24,0.00019452,2]
[346365603,1734913840084,-5529.73,0.00019452,2]
[346365605,1734913840093,-772.93,0.00019452,2]
[346365608,1734913840103,-500.0,0.00019452,2]
[346365611,1734913840111,-2076.0,0.00019452,2]